{"text_format":"1","workbook":"xlsx","n_sheets":1,"sheets":["Шығын сметасы"],"not_rendered":{"charts":2,"images":0,"macros":0,"external_links":0,"defined_names":3,"comments":0,"pivot_tables":0},"unopened":[],"bounds":{"document_bytes":16777216,"sheet_cells":100000,"rows_first":2000,"rows_last":500,"rows_between":2000,"halvings":0,"cell_chars":16384,"cell_head_chars":4096},"cells_cut":0,"cells_raw":0,"read":"whole","date_system":"1900"}

{"sheet":"Шығын сметасы","index":0,"n_rows":47,"n_cols":7,"rows_kept":47,"cut":false,"hidden":false,"merged":[[0,5,0,6],[0,1,0,4],[48,1,48,6],[16,1,16,6]]}
[null,"Шығын сметасы",null,null,null,"CONTOSO, 2013"]
[]
[]
[null,"ЖҰМЫСШЫЛАР БЮДЖЕТІ"]
[]
[]
[]
[]
[]
[]
[]
[null,"КҮЙ","ЖҰМЫСШЫЛАР","БЮДЖЕТ","НАҚТЫ","АЙЫРМАШЫЛЫҚ ($)","АЙЫРМАШЫЛЫҚ (%)"]
[null,{"$f":"IFERROR(tblPersonnelExpenses[[#This Row],[НАҚТЫ]]/tblPersonnelExpenses[[#This Row],[БЮДЖЕТ]],\"\")","v":1.1299999999999999},"Кеңсе",500,565,{"$f":"tblPersonnelExpenses[[#This Row],[БЮДЖЕТ]]-tblPersonnelExpenses[[#This Row],[НАҚТЫ]]","v":-65},{"$f":"IFERROR(tblPersonnelExpenses[АЙЫРМАШЫЛЫҚ ($)]/tblPersonnelExpenses[БЮДЖЕТ],\"\")","v":-0.13}]
[null,{"$f":"IFERROR(tblPersonnelExpenses[[#This Row],[НАҚТЫ]]/tblPersonnelExpenses[[#This Row],[БЮДЖЕТ]],\"\")","v":1.2},"Дүкен",125,150,{"$f":"tblPersonnelExpenses[[#This Row],[БЮДЖЕТ]]-tblPersonnelExpenses[[#This Row],[НАҚТЫ]]","v":-25},{"$f":"IFERROR(tblPersonnelExpenses[АЙЫРМАШЫЛЫҚ ($)]/tblPersonnelExpenses[БЮДЖЕТ],\"\")","v":-0.2}]
[null,{"$f":"IFERROR(tblPersonnelExpenses[[#This Row],[НАҚТЫ]]/tblPersonnelExpenses[[#This Row],[БЮДЖЕТ]],\"\")","v":1},"Сатушы",100,100,{"$f":"tblPersonnelExpenses[[#This Row],[БЮДЖЕТ]]-tblPersonnelExpenses[[#This Row],[НАҚТЫ]]","v":0},{"$f":"IFERROR(tblPersonnelExpenses[АЙЫРМАШЫЛЫҚ ($)]/tblPersonnelExpenses[БЮДЖЕТ],\"\")","v":0}]
[null,{"$f":"IFERROR(tblPersonnelExpenses[[#This Row],[НАҚТЫ]]/tblPersonnelExpenses[[#This Row],[БЮДЖЕТ]],\"\")","v":0.9},"Өзгелер",100,90,{"$f":"tblPersonnelExpenses[[#This Row],[БЮДЖЕТ]]-tblPersonnelExpenses[[#This Row],[НАҚТЫ]]","v":10},{"$f":"IFERROR(tblPersonnelExpenses[АЙЫРМАШЫЛЫҚ ($)]/tblPersonnelExpenses[БЮДЖЕТ],\"\")","v":0.1}]
[]
[]
[null,"ПАЙДАЛАНУ БЮДЖЕТІ"]
[]
[]
[]
[]
[]
[]
[]
[null,"КҮЙ","ПАЙДАЛАНУ","БЮДЖЕТ","НАҚТЫ","АЙЫРМАШЫЛЫҚ ($)","АЙЫРМАШЫЛЫҚ (%)"]
[null,{"$f":"IFERROR(tblOperatingExpenses[[#This Row],[НАҚТЫ]]/tblOperatingExpenses[[#This Row],[БЮДЖЕТ]],\"\")","v":0.98},"Жарнама",250,245,{"$f":"tblOperatingExpenses[[#This Row],[БЮДЖЕТ]]-tblOperatingExpenses[[#This Row],[НАҚТЫ]]","v":5},{"$f":"IFERROR(tblOperatingExpenses[[#This Row],[АЙЫРМАШЫЛЫҚ ($)]]/tblOperatingExpenses[[#This Row],[БЮДЖЕТ]],\"\")","v":0.02}]
[null,{"$f":"IFERROR(tblOperatingExpenses[[#This Row],[НАҚТЫ]]/tblOperatingExpenses[[#This Row],[БЮДЖЕТ]],\"\")","v":1.2},"Қарыздар",125,150,{"$f":"tblOperatingExpenses[[#This Row],[БЮДЖЕТ]]-tblOperatingExpenses[[#This Row],[НАҚТЫ]]","v":-25},{"$f":"IFERROR(tblOperatingExpenses[[#This Row],[АЙЫРМАШЫЛЫҚ ($)]]/tblOperatingExpenses[[#This Row],[БЮДЖЕТ]],\"\")","v":-0.2}]
[null,{"$f":"IFERROR(tblOperatingExpenses[[#This Row],[НАҚТЫ]]/tblOperatingExpenses[[#This Row],[БЮДЖЕТ]],\"\")","v":1},"Пайда",100,100,{"$f":"tblOperatingExpenses[[#This Row],[БЮДЖЕТ]]-tblOperatingExpenses[[#This Row],[НАҚТЫ]]","v":0},{"$f":"IFERROR(tblOperatingExpenses[[#This Row],[АЙЫРМАШЫЛЫҚ ($)]]/tblOperatingExpenses[[#This Row],[БЮДЖЕТ]],\"\")","v":0}]
[null,{"$f":"IFERROR(tblOperatingExpenses[[#This Row],[НАҚТЫ]]/tblOperatingExpenses[[#This Row],[БЮДЖЕТ]],\"\")","v":0.9},"Жеткізулер",100,90,{"$f":"tblOperatingExpenses[[#This Row],[БЮДЖЕТ]]-tblOperatingExpenses[[#This Row],[НАҚТЫ]]","v":10},{"$f":"IFERROR(tblOperatingExpenses[[#This Row],[АЙЫРМАШЫЛЫҚ ($)]]/tblOperatingExpenses[[#This Row],[БЮДЖЕТ]],\"\")","v":0.1}]
[null,{"$f":"IFERROR(tblOperatingExpenses[[#This Row],[НАҚТЫ]]/tblOperatingExpenses[[#This Row],[БЮДЖЕТ]],\"\")","v":""},"Пошта қызметі",null,null,{"$f":"tblOperatingExpenses[[#This Row],[БЮДЖЕТ]]-tblOperatingExpenses[[#This Row],[НАҚТЫ]]","v":0},{"$f":"IFERROR(tblOperatingExpenses[[#This Row],[АЙЫРМАШЫЛЫҚ ($)]]/tblOperatingExpenses[[#This Row],[БЮДЖЕТ]],\"\")","v":""}]
[null,{"$f":"IFERROR(tblOperatingExpenses[[#This Row],[НАҚТЫ]]/tblOperatingExpenses[[#This Row],[БЮДЖЕТ]],\"\")","v":""},"Жалгерлік ақы не ипотека",null,null,{"$f":"tblOperatingExpenses[[#This Row],[БЮДЖЕТ]]-tblOperatingExpenses[[#This Row],[НАҚТЫ]]","v":0},{"$f":"IFERROR(tblOperatingExpenses[[#This Row],[АЙЫРМАШЫЛЫҚ ($)]]/tblOperatingExpenses[[#This Row],[БЮДЖЕТ]],\"\")","v":""}]
[null,{"$f":"IFERROR(tblOperatingExpenses[[#This Row],[НАҚТЫ]]/tblOperatingExpenses[[#This Row],[БЮДЖЕТ]],\"\")","v":""},"Жеңілдетіп сату шығындары",null,null,{"$f":"tblOperatingExpenses[[#This Row],[БЮДЖЕТ]]-tblOperatingExpenses[[#This Row],[НАҚТЫ]]","v":0},{"$f":"IFERROR(tblOperatingExpenses[[#This Row],[АЙЫРМАШЫЛЫҚ ($)]]/tblOperatingExpenses[[#This Row],[БЮДЖЕТ]],\"\")","v":""}]
[null,{"$f":"IFERROR(tblOperatingExpenses[[#This Row],[НАҚТЫ]]/tblOperatingExpenses[[#This Row],[БЮДЖЕТ]],\"\")","v":""},"Салықтар",null,null,{"$f":"tblOperatingExpenses[[#This Row],[БЮДЖЕТ]]-tblOperatingExpenses[[#This Row],[НАҚТЫ]]","v":0},{"$f":"IFERROR(tblOperatingExpenses[[#This Row],[АЙЫРМАШЫЛЫҚ ($)]]/tblOperatingExpenses[[#This Row],[БЮДЖЕТ]],\"\")","v":""}]
[null,{"$f":"IFERROR(tblOperatingExpenses[[#This Row],[НАҚТЫ]]/tblOperatingExpenses[[#This Row],[БЮДЖЕТ]],\"\")","v":""},"Қуат көзі",null,null,{"$f":"tblOperatingExpenses[[#This Row],[БЮДЖЕТ]]-tblOperatingExpenses[[#This Row],[НАҚТЫ]]","v":0},{"$f":"IFERROR(tblOperatingExpenses[[#This Row],[АЙЫРМАШЫЛЫҚ ($)]]/tblOperatingExpenses[[#This Row],[БЮДЖЕТ]],\"\")","v":""}]
[null,{"$f":"IFERROR(tblOperatingExpenses[[#This Row],[НАҚТЫ]]/tblOperatingExpenses[[#This Row],[БЮДЖЕТ]],\"\")","v":""},"Өзгелер",null,null,{"$f":"tblOperatingExpenses[[#This Row],[БЮДЖЕТ]]-tblOperatingExpenses[[#This Row],[НАҚТЫ]]","v":0},{"$f":"IFERROR(tblOperatingExpenses[[#This Row],[АЙЫРМАШЫЛЫҚ ($)]]/tblOperatingExpenses[[#This Row],[БЮДЖЕТ]],\"\")","v":""}]
[null,{"$f":"IFERROR(tblOperatingExpenses[[#This Row],[НАҚТЫ]]/tblOperatingExpenses[[#This Row],[БЮДЖЕТ]],\"\")","v":""},"Сақтандыру",null,null,{"$f":"tblOperatingExpenses[[#This Row],[БЮДЖЕТ]]-tblOperatingExpenses[[#This Row],[НАҚТЫ]]","v":0},{"$f":"IFERROR(tblOperatingExpenses[[#This Row],[АЙЫРМАШЫЛЫҚ ($)]]/tblOperatingExpenses[[#This Row],[БЮДЖЕТ]],\"\")","v":""}]
[null,{"$f":"IFERROR(tblOperatingExpenses[[#This Row],[НАҚТЫ]]/tblOperatingExpenses[[#This Row],[БЮДЖЕТ]],\"\")","v":""},"Пайыз",null,null,{"$f":"tblOperatingExpenses[[#This Row],[БЮДЖЕТ]]-tblOperatingExpenses[[#This Row],[НАҚТЫ]]","v":0},{"$f":"IFERROR(tblOperatingExpenses[[#This Row],[АЙЫРМАШЫЛЫҚ ($)]]/tblOperatingExpenses[[#This Row],[БЮДЖЕТ]],\"\")","v":""}]
[null,{"$f":"IFERROR(tblOperatingExpenses[[#This Row],[НАҚТЫ]]/tblOperatingExpenses[[#This Row],[БЮДЖЕТ]],\"\")","v":""},"Телефон",null,null,{"$f":"tblOperatingExpenses[[#This Row],[БЮДЖЕТ]]-tblOperatingExpenses[[#This Row],[НАҚТЫ]]","v":0},{"$f":"IFERROR(tblOperatingExpenses[[#This Row],[АЙЫРМАШЫЛЫҚ ($)]]/tblOperatingExpenses[[#This Row],[БЮДЖЕТ]],\"\")","v":""}]
[null,{"$f":"IFERROR(tblOperatingExpenses[[#This Row],[НАҚТЫ]]/tblOperatingExpenses[[#This Row],[БЮДЖЕТ]],\"\")","v":""},"Қызмет көрсету және жөндеу",null,null,{"$f":"tblOperatingExpenses[[#This Row],[БЮДЖЕТ]]-tblOperatingExpenses[[#This Row],[НАҚТЫ]]","v":0},{"$f":"IFERROR(tblOperatingExpenses[[#This Row],[АЙЫРМАШЫЛЫҚ ($)]]/tblOperatingExpenses[[#This Row],[БЮДЖЕТ]],\"\")","v":""}]
[null,{"$f":"IFERROR(tblOperatingExpenses[[#This Row],[НАҚТЫ]]/tblOperatingExpenses[[#This Row],[БЮДЖЕТ]],\"\")","v":""},"Заңды төлемдер",null,null,{"$f":"tblOperatingExpenses[[#This Row],[БЮДЖЕТ]]-tblOperatingExpenses[[#This Row],[НАҚТЫ]]","v":0},{"$f":"IFERROR(tblOperatingExpenses[[#This Row],[АЙЫРМАШЫЛЫҚ ($)]]/tblOperatingExpenses[[#This Row],[БЮДЖЕТ]],\"\")","v":""}]
[null,{"$f":"IFERROR(tblOperatingExpenses[[#This Row],[НАҚТЫ]]/tblOperatingExpenses[[#This Row],[БЮДЖЕТ]],\"\")","v":""},"Тозу",null,null,{"$f":"tblOperatingExpenses[[#This Row],[БЮДЖЕТ]]-tblOperatingExpenses[[#This Row],[НАҚТЫ]]","v":0},{"$f":"IFERROR(tblOperatingExpenses[[#This Row],[АЙЫРМАШЫЛЫҚ ($)]]/tblOperatingExpenses[[#This Row],[БЮДЖЕТ]],\"\")","v":""}]
[null,{"$f":"IFERROR(tblOperatingExpenses[[#This Row],[НАҚТЫ]]/tblOperatingExpenses[[#This Row],[БЮДЖЕТ]],\"\")","v":""},"Жеткізу",null,null,{"$f":"tblOperatingExpenses[[#This Row],[БЮДЖЕТ]]-tblOperatingExpenses[[#This Row],[НАҚТЫ]]","v":0},{"$f":"IFERROR(tblOperatingExpenses[[#This Row],[АЙЫРМАШЫЛЫҚ ($)]]/tblOperatingExpenses[[#This Row],[БЮДЖЕТ]],\"\")","v":""}]
[null,{"$f":"IFERROR(tblOperatingExpenses[[#This Row],[НАҚТЫ]]/tblOperatingExpenses[[#This Row],[БЮДЖЕТ]],\"\")","v":""},"Сақтау",null,null,{"$f":"tblOperatingExpenses[[#This Row],[БЮДЖЕТ]]-tblOperatingExpenses[[#This Row],[НАҚТЫ]]","v":0},{"$f":"IFERROR(tblOperatingExpenses[[#This Row],[АЙЫРМАШЫЛЫҚ ($)]]/tblOperatingExpenses[[#This Row],[БЮДЖЕТ]],\"\")","v":""}]
[null,{"$f":"IFERROR(tblOperatingExpenses[[#This Row],[НАҚТЫ]]/tblOperatingExpenses[[#This Row],[БЮДЖЕТ]],\"\")","v":""},"Өзгелер",null,null,{"$f":"tblOperatingExpenses[[#This Row],[БЮДЖЕТ]]-tblOperatingExpenses[[#This Row],[НАҚТЫ]]","v":0},{"$f":"IFERROR(tblOperatingExpenses[[#This Row],[АЙЫРМАШЫЛЫҚ ($)]]/tblOperatingExpenses[[#This Row],[БЮДЖЕТ]],\"\")","v":""}]
[null,null,"Жалпы шығындар",{"$f":"SUBTOTAL(109,tblOperatingExpenses[БЮДЖЕТ],tblPersonnelExpenses[БЮДЖЕТ])","v":1400},{"$f":"SUBTOTAL(109,tblOperatingExpenses[НАҚТЫ],tblPersonnelExpenses[НАҚТЫ])","v":1490},{"$f":"SUBTOTAL(109,tblOperatingExpenses[АЙЫРМАШЫЛЫҚ ($)],tblPersonnelExpenses[АЙЫРМАШЫЛЫҚ ($)])","v":-90},{"$f":"IFERROR(SUM(tblOperatingExpenses[[#Totals],[АЙЫРМАШЫЛЫҚ ($)]]/tblOperatingExpenses[[#Totals],[БЮДЖЕТ]]),\"\")","v":-6.4285714285714279E-2}]